bitfinex/quotes_SOLUSD_20220302
["timestamp","ask_amount","ask_price","bid_price","bid_amount"]
[1646257562603,45.8791424,100.66,100.62,14.38]
[1646257562798,45.8791424,100.66,100.62,14.63]
[1646257568905,4.968,100.69,100.62,17.00585339]
[1646257569106,4.966,100.7,100.62,76.93585339]
[1646257569307,4.966,100.72,100.62,79.48489342]
[1646257569506,4.966,100.73,100.62,79.48489342]
[1646257569907,61.90438224,100.72,100.62,32.08714003]
[1646257570207,4.966,100.71,100.62,29.5381]
[1646257570507,5.216,100.71,100.62,29.5381]
[1646257571010,43.90789913,100.7,100.62,75.40981366]
[1646257571206,45.24840171,100.68,100.62,75.40981366]
[1646257571517,45.24840171,100.68,100.62,29.5381]
[1646257572408,45.24840171,100.68,100.62,71.66228777]
[1646257572809,45.24840171,100.68,100.62,131.59228777]
[1646257573112,45.24840171,100.68,100.62,231.32228777]
[1646257573313,45.24840171,100.68,100.62,233.8713278]
[1646257575212,45.24840171,100.68,100.62,134.1413278]
[1646257576613,4.966,100.71,100.62,134.1413278]
[1646257576813,4.966,100.71,100.62,233.8713278]
[1646257577016,4.966,100.73,100.62,416.04229454]
[1646257577314,4.966,100.73,100.69,59.93]
[1646257577517,0.43153,100.76,100.7,14.38]
[1646257577715,0.43153,100.76,100.7,27.95093086]
[1646257577917,0.43153,100.76,100.7,87.88093086]
[1646257578116,0.43153,100.76,100.7,27.95093086]
[1646257578315,0.43153,100.76,100.7,30.49997089]
[1646257579019,45.72822585,100.76,100.7,45.39647089]
[1646257580040,45.72822585,100.76,100.7,105.32647089]
[1646257580219,0.43153,100.76,100.7,105.32647089]
[1646257580423,0.43153,100.76,100.7,205.05647089]
[1646257581220,0.43153,100.76,100.7,105.32647089]
[1646257581620,41.02753155,100.76,100.7,102.77743086]
[1646257583226,0.43153,100.76,100.71,2.54904003]
[1646257583424,0.43153,100.76,100.72,14.8918]
[1646257583627,0.43153,100.76,100.72,15.1418]
[1646257584029,0.43153,100.76,100.72,29.5218]
[1646257584230,0.43153,100.76,100.72,71.64598777]
[1646257584931,0.43153,100.76,100.72,29.5218]
[1646257585831,0.43153,100.76,100.72,69.49933653]
[1646257588155,0.43153,100.76,100.72,29.5218]
[1646257589155,0.43153,100.76,100.73,45.38327677]
[1646257589353,0.43153,100.76,100.73,74.90487677]
[1646257589554,0.43153,100.76,100.74,0.11195554]
[1646257590255,11.46141619,100.8,100.74,0.11195554]
[1646257590256,5.46141619,100.8,100.75,344.66]
[1646257590457,5.46141619,100.8,100.76,74.8175]
[1646257590458,0.49841619,100.8,100.76,74.8175]
[1646257590657,0.49841619,100.8,100.77,14.38]
[1646257590855,0.49841619,100.8,100.78,0.1119111]
[1646257591056,0.49841619,100.8,100.78,14.4919111]
[1646257591260,0.49841619,100.8,100.78,24.80375296]
[1646257592057,0.49841619,100.8,100.79,14.8833]
[1646257592257,0.49841619,100.8,100.79,15.1333]
[1646257592457,0.49841619,100.8,100.79,29.5133]
[1646257593960,0.49841619,100.8,100.79,29.2633]
[1646257595360,0.49841619,100.8,100.79,29.5133]
[1646257596561,0.49841619,100.8,100.79,14.63]
[1646257597162,0.49841619,100.8,100.78,0.1119111]
[1646257597362,0.49841619,100.8,100.76,14.38]
[1646257599464,0.49841619,100.8,100.76,19.341]
[1646257599663,0.49841619,100.8,100.73,29.2709]
[1646257599865,0.49841619,100.8,100.73,14.8909]
[1646257600263,0.49841619,100.8,100.73,19.8529]
[1646257600264,4.962,100.79,100.73,19.8529]
[1646257600568,46.79369541,100.78,100.73,85.43876082]
[1646257600966,46.79369541,100.78,100.73,85.68876082]
[1646257602265,46.79369541,100.78,100.73,34.4829]
[1646257603968,46.79369541,100.78,100.73,29.5209]
[1646257604969,46.79369541,100.78,100.73,14.63]
[1646257605168,46.79369541,100.78,100.73,0.25]
[1646257605369,46.79369541,100.78,100.72,5.212]
[1646257606367,46.79369541,100.78,100.72,4.962]
[1646257606970,46.79369541,100.78,100.71,34.2361]
[1646257607568,46.79369541,100.78,100.71,29.2741]
[1646257608377,4.963,100.77,100.72,5.33530268]
[1646257608570,44.11118596,100.76,100.72,20.22870268]
[1646257608772,44.11118596,100.76,100.72,14.8934]
[1646257608971,44.11118596,100.76,100.73,74.31]
[1646257609174,0.49841619,100.8,100.74,1.40922833]
[1646257609371,0.49841619,100.8,100.74,21.00022833]
[1646257609572,4.961,100.79,100.74,16.03922833]
[1646257610175,60.09665444,100.78,100.74,16.03922833]
[1646257611174,60.09665444,100.78,100.74,30.92962833]
[1646257612174,60.09665444,100.78,100.74,107.40883003]
[1646257612373,0.49841619,100.8,100.74,107.40883003]
[1646257612872,0.49841619,100.8,100.76,14.8877]
[1646257613074,0.49841619,100.8,100.76,29.5177]
[1646257613275,0.49841619,100.8,100.76,70.96265696]
[1646257613773,0.49841619,100.8,100.77,4.961]
[1646257613974,0.49841619,100.8,100.77,19.591]
[1646257614175,0.49841619,100.8,100.77,34.4772]
[1646257615375,0.49841619,100.8,100.77,19.591]
[1646257615575,0.49841619,100.8,100.77,0.25]
[1646257615775,0.49841619,100.8,100.78,3.03219996]
[1646257615975,0.49841619,100.8,100.75,15.1379]
[1646257616177,0.49841619,100.8,100.75,20.0989]
[1646257616379,30.98410958,100.8,100.75,5.211]
[1646257616579,30.98410958,100.8,100.75,4.961]
[1646257616783,30.98410958,100.8,100.73,4.961]
[1646257616984,35.94610958,100.8,100.73,4.961]
[1646257617280,35.94610958,100.8,100.72,4.962]
[1646257617485,85.00790958,100.8,100.71,19.342]
[1646257618084,84.75790958,100.8,100.72,14.8931]
[1646257618383,84.75790958,100.8,100.73,4.962]
[1646257618683,184.48790958,100.8,100.72,19.8551]
[1646257618886,85.00790958,100.8,100.72,19.8551]
[1646257619083,85.00790958,100.8,100.72,20.1051]
[1646257619884,86.5733562,100.8,100.72,20.1051]
[1646257620484,99.73,100.79,100.72,5.212]
[1646257620684,4.962,100.78,100.72,5.212]
[1646257621305,50.06278905,100.77,100.72,4.962]
[1646257622805,50.06278905,100.77,100.7,24.4874]
[1646257624107,50.06278905,100.77,100.7,24.7374]
[1646257624807,50.06278905,100.77,100.7,23.9874]
[1646257626211,50.06278905,100.77,100.7,24.2374]
[1646257627714,50.06278905,100.77,100.69,5.0]
[1646257627915,50.06278905,100.77,100.67,20.60756314]
[1646257627916,50.31278905,100.77,100.67,20.60756314]
[1646257628114,1.81544662,100.76,100.66,5.0]
[1646257628316,25.28884662,100.76,100.64,122.6852]
[1646257628516,4.965,100.75,100.64,122.6852]
[1646257628715,64.06549232,100.74,100.65,56.76250726]
[1646257629114,64.31549232,100.74,100.66,14.9015]
[1646257629515,1.81544662,100.73,100.66,14.9015]
[1646257629717,55.02778905,100.72,100.65,51.76250726]
[1646257629915,55.02778905,100.72,100.63,14.38]
[1646257631117,55.02778905,100.72,100.64,58.58060545]
[1646257631318,55.02778905,100.72,100.64,58.83060545]
[1646257631516,55.02778905,100.72,100.64,73.21060545]
[1646257632615,55.27778905,100.72,100.64,73.21060545]
[1646257637024,55.02778905,100.72,100.64,73.21060545]
[1646257637226,55.02778905,100.72,100.64,133.14060545]
[1646257637428,55.02778905,100.72,100.64,138.14060545]
[1646257637625,50.06278905,100.72,100.65,5.0]
[1646257637827,50.06278905,100.72,100.67,14.9006]
[1646257638025,50.06278905,100.72,100.67,15.1506]
[1646257638225,50.06278905,100.72,100.68,43.67620545]
[1646257638426,4.966,100.73,100.68,43.92620545]
[1646257638627,4.966,100.73,100.68,63.30620545]
[1646257639426,58.84677663,100.74,100.68,138.13540545]
[1646257639627,58.84677663,100.74,100.68,133.13540545]
[1646257639826,58.84677663,100.74,100.7,11.76891318]
[1646257640029,58.84677663,100.74,100.7,12.01891318]
[1646257640827,58.84677663,100.74,100.7,26.91381318]
[1646257642636,58.84677663,100.74,100.69,5.0]
[1646257642831,59.09677663,100.74,100.64,31.80684889]
[1646257643132,0.17843936,100.72,100.63,22.8606]
[1646257643338,107.79544662,100.73,100.63,22.8606]
[1646257643630,27.07020475,100.72,100.63,22.8606]
[1646257643831,41.70020475,100.72,100.63,22.8606]
[1646257644031,64.81910475,100.72,100.62,72.94615856]
[1646257644231,56.85325952,100.7,100.62,72.94615856]
[1646257645032,56.85325952,100.7,100.63,14.9068]
[1646257645336,56.85325952,100.7,100.64,27.22466006]
[1646257645533,56.85325952,100.7,100.64,27.47466006]
[1646257647035,56.85325952,100.7,100.64,42.37996006]
[1646257652445,4.966,100.71,100.64,102.30996006]
[1646257652645,4.966,100.71,100.67,14.8979]
[1646257652844,4.966,100.71,100.67,15.1479]
[1646257653048,4.965,100.75,100.67,15.1479]
[1646257653245,52.8825,100.76,100.67,15.1479]
[1646257653446,43.50189077,100.75,100.68,48.11535856]
[1646257653646,43.50189077,100.75,100.68,48.36535856]
[1646257655063,43.50189077,100.75,100.69,14.898]
[1646257655263,43.50189077,100.75,100.69,15.148]
[1646257655463,43.50189077,100.75,100.7,27.22466006]
[1646257655666,43.50189077,100.75,100.7,27.47466006]
[1646257656666,48.46589077,100.75,100.7,27.47466006]
[1646257656872,43.50189077,100.75,100.7,32.43866006]
[1646257659769,43.50189077,100.75,100.7,27.47466006]
[1646257660871,43.50189077,100.75,100.7,0.25]
[1646257661069,43.50189077,100.75,100.67,20.1139]
[1646257661770,43.50189077,100.75,100.68,49.02880372]
[1646257661972,43.50189077,100.75,100.68,64.17820372]
[1646257663674,27.50809061,100.73,100.68,64.17820372]
[1646257664073,27.40196865,100.73,100.68,49.02880372]
[1646257665775,27.40196865,100.73,100.68,49.27880372]
[1646257666176,27.40196865,100.73,100.67,4.964]
[1646257666375,32.36696865,100.73,100.67,0.25]
[1646257667278,32.36696865,100.73,100.67,44.87103474]
[1646257667877,32.36696865,100.73,100.67,44.62103474]
[1646257668481,133.92464183,100.73,100.67,44.62103474]
[1646257668678,133.92464183,100.73,100.64,19.8692]
[1646257669079,148.74504183,100.73,100.64,19.8692]
[1646257669280,49.01504183,100.73,100.64,20.1192]
[1646257669681,49.01504183,100.73,100.65,47.19496751]
[1646257669881,49.01504183,100.73,100.65,47.44496751]
[1646257670683,32.36696865,100.73,100.65,47.44496751]
[1646257671085,32.36696865,100.73,100.65,62.34856751]
[1646257671285,27.40196865,100.73,100.65,62.34856751]
[1646257671485,27.40196865,100.73,100.65,67.31356751]
[1646257674088,5.0,100.78,100.66,187.480837]
[1646257674291,0.49841619,100.8,100.7,159.66]
[1646257674488,0.49841619,100.8,100.72,159.66]
[1646257674689,0.49841619,100.8,100.74,59.93]
[1646257674887,0.49841619,100.8,100.75,14.38]
[1646257675089,0.49841619,100.8,100.75,47.84217307]
[1646257675291,0.49841619,100.8,100.75,76.02201517]
[1646257675489,0.49841619,100.8,100.76,25.63080207]
[1646257675690,0.49841619,100.8,100.77,47.19496751]
[1646257675887,0.49841619,100.8,100.77,47.44496751]
[1646257676288,0.49841619,100.8,100.78,1.28223075]
[1646257676489,0.49841619,100.8,100.78,1.53223075]
[1646257676890,0.49841619,100.8,100.79,28.25117307]
[1646257677090,0.49841619,100.8,100.79,28.50117307]
[1646257678192,0.49841619,100.8,100.79,0.25]
[1646257678492,0.49841619,100.8,100.78,16.41673075]
[1646257679194,0.49841619,100.8,100.79,44.84443413]
[1646257679493,0.49841619,100.8,100.79,45.09443413]
[1646257680696,1.619e-05,100.8,100.79,0.25]
[1646257680896,1.619e-05,100.8,100.78,16.41673075]
[1646257682596,1.619e-05,100.8,100.78,1.53223075]
[1646257683097,1.619e-05,100.8,100.78,1.28223075]
[1646257689330,1.619e-05,100.8,100.75,4.961]
[1646257689526,1.619e-05,100.8,100.75,5.211]
[1646257692428,1.619e-05,100.8,100.75,4.961]
[1646257692629,0.19086998,100.79,100.72,14.8928]
[1646257692827,0.19086998,100.79,100.69,19.38]
[1646257693030,0.19086998,100.79,100.69,16.92904003]
[1646257693328,12.0832237,100.79,100.7,109.35561714]
[1646257693529,12.14235372,100.79,100.7,111.90465717]
[1646257693729,12.14235372,100.79,100.7,66.35465717]
[1646257694132,12.14235372,100.79,100.7,81.50025717]
[1646257697430,12.14235372,100.79,100.7,67.12025717]
[1646257698231,52.07786842,100.77,100.7,67.12025717]
[1646257698933,52.07786842,100.77,100.7,52.22465717]
[1646257699935,52.07786842,100.77,100.7,2.79904003]
[1646257700535,52.07786842,100.77,100.7,0.25]
[1646257700734,75.07366842,100.77,100.68,62.9101]
[1646257700934,99.73,100.76,100.68,111.45537129]
[1646257701137,18.825991,100.75,100.68,62.9101]
[1646257701335,118.555991,100.75,100.68,62.9101]
[1646257701538,4.964,100.74,100.68,48.0114]
[1646257701738,4.964,100.74,100.68,0.25]
[1646257702036,4.964,100.74,100.65,82.20261252]
[1646257702236,4.964,100.74,100.66,43.99110095]
[1646257702237,48.68946349,100.73,100.66,43.99110095]
[1646257702437,48.68946349,100.73,100.66,46.54014098]
[1646257703438,22.21439593,100.71,100.66,46.54014098]
[1646257703837,22.21439593,100.71,100.66,2.54904003]
[1646257704040,22.21439593,100.71,100.64,25.55264003]
[1646257704240,4.966,100.7,100.64,23.0036]
[1646257704438,5.216,100.7,100.64,23.0036]
[1646257704839,47.40285476,100.69,100.63,97.29059529]
[1646257705038,47.40285476,100.69,100.63,74.07959529]
[1646257705439,47.40285476,100.69,100.63,74.32959529]
[1646257705739,47.40285476,100.69,100.63,76.87863532]
[1646257705939,47.40285476,100.69,100.63,76.62863532]
[1646257707543,23.50100466,100.67,100.63,76.62863532]
[1646257708347,23.50100466,100.67,100.63,76.87863532]
[1646257709746,4.966,100.71,100.63,76.87863532]
[1646257709945,5.216,100.71,100.63,76.87863532]
[1646257710749,47.05895881,100.7,100.63,76.87863532]
[1646257711051,4.966,100.69,100.63,76.87863532]
[1646257711247,47.30895881,100.7,100.63,76.87863532]
[1646257713253,47.30895881,100.7,100.63,74.32959529]
[1646257714454,47.05895881,100.7,100.63,74.32959529]
[1646257714656,4.966,100.71,100.64,159.66]
[1646257714853,29.3737,100.76,100.66,74.8311]
[1646257715075,4.966,100.76,100.67,179.004]
[1646257715254,4.964,100.79,100.67,196.53599193]
[1646257715454,6.0,100.78,100.69,59.93]
[1646257715654,47.07870064,100.77,100.7,30.65224529]
[1646257715854,47.07870064,100.77,100.7,30.90224529]
[1646257716256,47.07870064,100.77,100.7,90.83224529]
[1646257717054,4.96301619,100.8,100.71,4.963]
[1646257717257,1.619e-05,100.8,100.72,14.38]
[1646257717454,1.619e-05,100.8,100.72,14.63]
[1646257717660,1.619e-05,100.8,100.73,4.962]
[1646257717858,1.619e-05,100.8,100.73,5.212]
[1646257718154,43.32495565,100.8,100.73,50.29938125]
[1646257718956,43.32495565,100.8,100.73,45.33738125]
[1646257719257,43.32495565,100.8,100.73,60.22918125]
[1646257721757,43.32495565,100.8,100.74,4.962]
[1646257721957,43.32495565,100.8,100.74,5.212]
[1646257722859,43.32495565,100.8,100.74,0.25]
[1646257723056,43.57495565,100.8,100.71,15.1439]
[1646257723257,99.73,100.79,100.71,0.25]
[1646257723456,4.962,100.78,100.7,29.3783]
[1646257723958,27.57891996,100.77,100.7,78.38799651]
[1646257724359,27.57891996,100.77,100.7,53.97169651]
[1646257724559,27.57891996,100.77,100.7,49.00969651]
[1646257725559,27.57891996,100.77,100.71,2.54904003]
[1646257726160,27.57891996,100.77,100.71,2.79904003]
[1646257726367,27.82891996,100.77,100.71,2.54904003]
[1646257726560,32.79191996,100.77,100.69,4.963]
[1646257727061,6.0,100.76,100.69,4.963]
[1646257727260,105.98,100.76,100.69,4.963]
[1646257727463,43.32493946,100.75,100.69,4.963]
[1646257727660,43.32493946,100.75,100.69,23.79526691]
[1646257728060,43.32493946,100.75,100.69,24.04526691]
[1646257728262,43.32493946,100.75,100.69,5.213]
[1646257729667,43.32493946,100.75,100.69,0.25]
[1646257729866,43.32493946,100.75,100.7,21.35922002]
[1646257730086,43.32493946,100.75,100.7,0.25]
[1646257730482,4.964,100.74,100.7,0.25]
[1646257731186,27.57891996,100.73,100.69,48.8199798]
[1646257731385,27.57891996,100.73,100.69,49.0699798]
[1646257735893,4.964,100.77,100.69,108.9999798]
[1646257736095,49.7794,100.78,100.69,111.54901983]
[1646257736293,49.7794,100.78,100.7,59.93]
[1646257736494,49.7794,100.78,100.7,60.18]
[1646257736694,49.7794,100.78,100.7,62.72904003]
[1646257736895,55.76747875,100.77,100.71,26.62616078]
[1646257737095,55.76747875,100.77,100.71,41.77096078]
[1646257737296,49.7794,100.78,100.71,104.25000081]
[1646257737496,4.963,100.79,100.71,118.63000081]
[1646257737697,1.619e-05,100.8,100.71,218.36000081]
[1646257738000,1.619e-05,100.8,100.71,250.69372206]
[1646257738399,1.619e-05,100.8,100.71,447.78571399]
[1646257738797,57.92119074,100.83,100.73,159.66]
[1646257738996,57.92119074,100.83,100.77,14.8854]
[1646257739197,57.92119074,100.83,100.78,26.62616078]
[1646257739397,57.92119074,100.83,100.78,26.87616078]
[1646257740504,57.92119074,100.83,100.78,0.25]
[1646257740701,57.92119074,100.83,100.75,15.1381]
[1646257741099,57.92119074,100.83,100.75,17.68714003]
[1646257741498,57.92119074,100.83,100.75,75.92261329]
[1646257741899,58.17119074,100.83,100.75,73.37357326]
[1646257742099,6.0,100.82,100.75,58.48547326]
[1646257742299,12.48268487,100.81,100.75,58.48547326]
[1646257742699,12.48268487,100.81,100.75,0.25]
[1646257742899,12.48268487,100.81,100.73,15.1409]
[1646257743302,12.48268487,100.81,100.73,29.5209]
[1646257743900,12.48268487,100.81,100.74,58.01953499]
[1646257744101,57.92119074,100.79,100.74,58.26953499]
[1646257745502,57.92119074,100.79,100.74,58.01953499]
[1646257747102,57.92119074,100.79,100.74,58.26953499]
[1646257747303,51.4767,100.83,100.74,73.15993499]
[1646257747503,51.2267,100.83,100.74,73.15993499]
[1646257747702,51.2267,100.83,100.74,234.85857502]
[1646257747903,46.2647,100.83,100.74,234.85857502]
[1646257748103,46.2647,100.83,100.74,239.85857502]
[1646257748307,94.37930945,100.83,100.74,239.85857502]
[1646257748503,94.37930945,100.83,100.74,234.85857502]
[1646257748705,94.37930945,100.83,100.75,5.0]
[1646257748904,94.37930945,100.83,100.76,17.9265894]
[1646257749107,22.28926616,100.81,100.76,18.1765894]
[1646257752308,22.28926616,100.81,100.76,0.25]
[1646257752510,22.28926616,100.81,100.75,15.1381]
[1646257753311,22.28926616,100.81,100.75,63.50707314]
[1646257755010,22.28926616,100.81,100.75,15.1381]
[1646257755212,22.28926616,100.81,100.75,0.25]
[1646257755411,22.28926616,100.81,100.73,39.4505]
[1646257756113,22.53926616,100.81,100.73,98.45311656]
[1646257757814,22.53926616,100.81,100.73,98.20311656]
[1646257758017,46.30733011,100.79,100.73,98.20311656]
[1646257758215,46.30733011,100.79,100.73,73.89371656]
[1646257759114,46.30733011,100.79,100.73,74.14371656]
[1646257760319,46.30733011,100.79,100.73,15.1411]
[1646257760516,46.30733011,100.79,100.73,0.25]
[1646257760717,46.30733011,100.79,100.72,2.79904003]
[1646257760916,46.30733011,100.79,100.72,0.25]
[1646257761126,46.30733011,100.79,100.71,15.1438]
[1646257761322,46.30733011,100.79,100.71,59.82320315]
[1646257762618,46.30733011,100.79,100.71,62.37224318]
[1646257763218,4.962,100.78,100.71,62.37224318]
[1646257763419,24.0965455,100.77,100.71,62.37224318]
[1646257765345,24.0965455,100.77,100.71,17.69284003]
[1646257766145,24.0965455,100.77,100.71,2.54904003]
[1646257766348,25.92512371,100.77,100.69,14.8973]
[1646257766548,4.963,100.76,100.68,51.87119642]
[1646257766746,46.30733011,100.75,100.68,51.87119642]
[1646257767546,46.30733011,100.75,100.68,52.12119642]
[1646257768148,46.30733011,100.75,100.68,67.02059642]
[1646257769048,46.30733011,100.75,100.68,69.56963645]
[1646257770051,46.30733011,100.75,100.68,69.31963645]
[1646257771049,24.0965455,100.73,100.68,69.31963645]
[1646257771650,4.964,100.75,100.68,69.31963645]
[1646257771849,28.5514,100.76,100.68,69.31963645]
[1646257772051,28.5514,100.76,100.68,69.56963645]
[1646257772649,79.57934133,100.76,100.68,69.56963645]
[1646257773251,74.61534133,100.76,100.68,69.56963645]
[1646257775153,4.964,100.75,100.68,69.56963645]
[1646257775354,19.37593428,100.74,100.68,69.56963645]
[1646257780258,19.37593428,100.74,100.68,0.25]
[1646257780458,19.62593428,100.74,100.67,46.6648]
[1646257780659,19.62593428,100.74,100.67,0.25]
[1646257780858,19.62593428,100.74,100.66,15.1513]
[1646257781258,19.62593428,100.74,100.67,57.33175699]
[1646257781460,51.02794133,100.72,100.67,57.58175699]
[1646257781863,51.02794133,100.72,100.67,57.33175699]
[1646257783061,51.02794133,100.72,100.67,57.58175699]
[1646257790969,51.02794133,100.72,100.67,57.33175699]
[1646257792571,51.02794133,100.72,100.67,57.58175699]
[1646257792970,51.02794133,100.72,100.67,0.25]
[1646257793171,51.02794133,100.72,100.65,5.214]
[1646257793874,51.02794133,100.72,100.66,57.4149976]
[1646257794074,51.02794133,100.72,100.66,57.6649976]
[1646257794572,55.99294133,100.72,100.66,57.6649976]
[1646257796974,55.99294133,100.72,100.66,0.25]
[1646257797173,155.72294133,100.72,100.64,20.1192]
[1646257797376,56.24294133,100.72,100.64,20.1192]
[1646257797595,56.24294133,100.72,100.64,5.215]
[1646257797774,56.24294133,100.72,100.64,0.25]
[1646257797975,56.24294133,100.72,100.64,44.85381817]
[1646257798174,56.24294133,100.72,100.64,45.10381817]
[1646257798976,71.15004133,100.72,100.64,45.10381817]
[1646257800075,55.99294133,100.72,100.64,45.10381817]
[1646257800279,51.02794133,100.72,100.65,4.966]
[1646257800481,51.02794133,100.72,100.66,45.47230622]
[1646257800677,24.1329,100.74,100.67,4.965]
[1646257800877,24.1329,100.74,100.67,5.215]
[1646257801177,24.1329,100.74,100.67,20.1158]
[1646257801577,24.1329,100.74,100.68,44.85381817]
[1646257801779,85.23861031,100.75,100.68,45.10381817]
[1646257802981,85.23861031,100.75,100.68,60.00291817]
[1646257803179,85.23861031,100.75,100.68,64.96691817]
[1646257805884,85.23861031,100.75,100.68,124.89691817]
[1646257806083,24.9852,100.75,100.68,64.96691817]
[1646257806283,24.9852,100.75,100.68,79.34691817]
[1646257806584,4.964,100.76,100.68,79.34691817]
[1646257806783,5.214,100.76,100.68,79.34691817]
[1646257807185,63.67599231,100.76,100.68,139.27691817]
[1646257808893,63.67599231,100.76,100.68,134.31291817]
[1646257809293,63.67599231,100.76,100.68,74.38291817]
[1646257809692,65.50448099,100.76,100.68,74.38291817]
[1646257810693,63.67599231,100.76,100.68,74.38291817]
[1646257812910,63.42599231,100.76,100.68,134.31291817]
[1646257813113,4.964,100.77,100.7,74.8258]
[1646257813311,4.964,100.77,100.7,75.0758]
[1646257813514,4.963,100.79,100.71,174.04]
[1646257813710,43.4301,100.84,100.72,4.962]
[1646257813711,52.5616,100.83,100.72,4.962]
[1646257813912,6.0,100.82,100.73,174.04]
[1646257814111,60.11216126,100.82,100.74,91.02230622]
[1646257814310,60.11216126,100.82,100.77,44.85381817]
[1646257814513,52.5616,100.83,100.77,45.10381817]
[1646257814713,4.962,100.83,100.77,105.03381817]
[1646257815216,4.962,100.83,100.77,110.76981817]
[1646257815714,57.52123626,100.84,100.77,110.76981817]
[1646257816011,57.52123626,100.84,100.78,14.8846]
[1646257816211,57.52123626,100.84,100.79,31.09230622]
[1646257816412,57.52123626,100.84,100.79,31.34230622]
[1646257818015,57.52123626,100.84,100.79,36.30030622]
[1646257820419,57.52123626,100.84,100.79,5.208]
[1646257821520,57.52123626,100.84,100.79,54.17620324]
[1646257823422,57.52123626,100.84,100.79,5.208]
[1646257824822,57.77123626,100.84,100.79,4.958]
[1646257825023,4.958,100.83,100.75,5.0]
[1646257825223,5.208,100.83,100.75,5.0]
[1646257825525,44.58732758,100.83,100.75,0.25]
[1646257825723,12.88263935,100.82,100.75,0.25]
[1646257825923,4.961,100.81,100.75,0.25]
[1646257826125,45.27208754,100.8,100.72,60.33718221]
[1646257826325,45.27208754,100.8,100.72,60.58718221]
[1646257826626,45.52208754,100.8,100.72,60.58718221]
[1646257826826,45.27208754,100.8,100.72,60.58718221]
[1646257827027,45.27208754,100.8,100.72,134.89718221]
[1646257827625,45.27208754,100.8,100.72,139.89718221]
[1646257828225,45.27208754,100.8,100.72,79.96718221]
[1646257830530,4.962,100.79,100.72,79.96718221]
[1646257830728,25.13178807,100.78,100.72,79.96718221]
[1646257833033,25.13178807,100.78,100.72,74.96718221]
[1646257833231,4.962,100.81,100.72,139.89718221]
[1646257833432,4.962,100.81,100.73,2.54904003]
[1646257833632,51.8569,100.83,100.75,14.8885]
[1646257833830,51.8569,100.83,100.75,15.1385]
[1646257834231,52.48344217,100.82,100.76,30.50124218]
[1646257834433,52.48344217,100.82,100.76,30.75124218]
[1646257834632,4.96,100.81,100.76,30.75124218]
[1646257835032,57.44444217,100.82,100.76,30.75124218]
[1646257836133,57.44444217,100.82,100.76,45.63864218]
[1646257836934,52.48344217,100.82,100.76,30.75124218]
[1646257837534,46.8959,100.83,100.76,90.68124218]
[1646257837736,4.96,100.85,100.78,14.8844]
[1646257837935,23.8042,100.86,100.78,15.1344]
[1646257838636,54.93507431,100.85,100.79,45.44488221]
[1646257838933,54.93507431,100.85,100.79,45.69488221]
[1646257841736,54.93507431,100.85,100.79,0.25]
[1646257841937,54.93507431,100.85,100.78,15.1344]
[1646257842740,54.93507431,100.85,100.79,50.95565277]
[1646257842944,49.97707431,100.85,100.79,65.58565277]
[1646257844343,49.97707431,100.85,100.79,125.51565277]
[1646257844944,49.97707431,100.85,100.79,65.58565277]
[1646257845145,49.97707431,100.85,100.8,14.8817]
[1646257845344,49.97707431,100.85,100.8,15.1317]
[1646257845945,49.97707431,100.85,100.81,24.99047162]
[1646257846149,49.97707431,100.85,100.81,25.24047162]
[1646257847669,49.97707431,100.85,100.81,0.25]
[1646257847868,49.97707431,100.85,100.8,15.1317]
[1646257851471,49.97707431,100.85,100.81,20.7560158]
[1646257851671,41.35386409,100.89,100.81,80.9360158]
[1646257851871,41.35386409,100.89,100.81,195.5460158]
[1646257851872,0.25,100.89,100.81,195.5460158]
[1646257852071,0.25,100.89,100.81,195.0460158]
[1646257852271,0.25,100.89,100.81,202.55205583]
[1646257852471,0.25,100.89,100.83,5.0]
[1646257852771,56.40827584,100.89,100.83,55.37766369]
[1646257852971,56.15827584,100.89,100.83,55.37766369]
[1646257853670,56.15827584,100.89,100.83,60.33466369]
[1646257854074,56.40827584,100.89,100.83,70.25466369]
[1646257854273,56.15827584,100.89,100.83,70.25466369]
[1646257854771,61.11527584,100.89,100.83,70.25466369]
[1646257854973,56.15827584,100.89,100.83,70.25466369]
[1646257855173,56.15827584,100.89,100.83,75.21166369]
[1646257856074,56.15827584,100.89,100.83,89.59166369]
[1646257856876,56.15827584,100.89,100.83,149.52166369]
[1646257857075,56.15827584,100.89,100.83,144.56466369]
[1646257858276,56.15827584,100.89,100.83,84.63466369]